[Event "Vienna Championship-C 2022"]
[Site "Vienna"]
[Date "2022.09.18"]
[Round "2.1"]
[White "Roehrbacher, Franz"]
[Black "Geyer, Guenter"]
[Result "1/2-1/2"]
[ECO "B00"]
[WhiteElo "1673"]
[BlackElo "1855"]
[Annotator "NA COMBH"]
[PlyCount "101"]
[EventDate "2022.09.17"]
[EventType "swiss"]
[EventCountry "AUT"]
[SourceTitle "playchess.com"]
[Source "ChessBase"]
[SourceQuality "1"]
[TimeControl "5400+30"]

1. e4 {[%emt 0:00:05]} Nc6 {[%emt 0:00:12]} 2. Nf3 {[%emt 0:00:33]} g6 {[%emt 0:02:56]} 3. Bb5 {[%emt 0:00:42]} Bg7 {[%emt 0:02:13]} 4. Bxc6 {[%emt 0:00:52]} bxc6 {[%emt 0:00:44]} 5. O-O {[%emt 0:00:39]} e6 {[%emt 0:01:57]} 6. d4 {[%emt 0:01:52]} Ne7 {[%emt 0:04:03]} 7. Nbd2 {[%emt 0:03:56]} O-O {[%emt 0:01:18]} 8. Nb3 {[%emt 0:02:27]} d6 {[%emt 0:02:16]} 9. Na5 {[%emt 0:07:42]} Bd7 {[%emt 0:08:01]} 10. Rb1 {[%emt 0:04:24]} Qb8 {[%emt 0:06:54]} 11. Bd2 {[%emt 0:12:11]} Qb6 {[%emt 0:03:55]} 12. Nc4 {[%emt 0:07:44]} Qb5 {[%emt 0:02:30]} 13. b3 {[%emt 0:02:36]} Qh5 {[%emt 0:03:51]} 14. e5 {[%emt 0:05:40]} d5 {[%emt 0:07:06]} 15. Nb2 {[%emt 0:03:39]} Nf5 {[%emt 0:06:54]} 16. Nd3 {[%emt 0:02:20]} Nh4 {[%emt 0:07:55]} 17. Nxh4 {[%emt 0:03:57]} Qxh4 {[%emt 0:00:10]} 18. Bb4 {[%emt 0:03:27]} Rfb8 {[%emt 0:03:11]} 19. f4 {[%emt 0:01:04]} Bc8 {[%emt 0:01:37]} 20. Be1 {[%emt 0:01:13]} Qe7 {[%emt 0:01:21]} 21. Nc5 {[%emt 0:03:12]} a5 {[%emt 0:11:52]} 22. a4 {[%emt 0:00:10]} Bf8 {[%emt 0:01:16]} 23. Rf3 {[%emt 0:03:34]} Qd8 {[%emt 0:00:56]} 24. Rh3 {[%emt 0:01:38]} Bxc5 {[%emt 0:01:15]} 25. dxc5 {[%emt 0:00:31]} Qf8 {[%emt 0:00:44]} 26. Bh4 {[%emt 0:07:08]} Qxc5+ {[%emt 0:00:40]} 27. Kh1 {[%emt 0:00:12]} Rb4 {[%emt 0:00:44]} 28. c4 {[%emt 0:10:01]} Ba6 {[%emt 0:01:20]} 29. Qe1 {[%emt 0:02:06]} dxc4 {[%emt 0:04:05]} 30. Bf6 {[%emt 0:00:31]} h5 {[%emt 0:06:24]} 31. Rxh5 {[%emt 0:01:26]} gxh5 {[%emt 0:00:12]} 32. Qg3+ {[%emt 0:00:05]} Kf8 {[%emt 0:00:00]} 33. Qg7+ {[%emt 0:00:16]} Ke8 {[%emt 0:00:03]} 34. Qg8+ {[%emt 0:00:13]} Kd7 {[%emt 0:00:01]} 35. Qxf7+ {[%emt 0:00:46]} Kc8 {[%emt 0:00:30]} 36. Be7 {[%emt 0:01:01]} Qb6 {[%emt 0:02:35]} 37. Qxe6+ {[%emt 0:09:07]} Kb7 {[%emt 0:00:48]} 38. Bxb4 {[%emt 0:00:00]} Qxb4 {[%emt 0:00:37]} 39. Rc1 {[%emt 0:00:00]} Qxb3 {[%emt 0:01:04]} 40. Qd7 {[%emt 0:00:00]} Qxa4 {[%emt 0:01:18]} 41. Rb1+ {[%emt 0:00:00]} Bb5 {[%emt 0:00:07]} 42. e6 {[%emt 0:00:00]} Qc2 {[%emt 0:00:13]} 43. Rd1 {[%emt 0:00:00]} Rg8 {[%emt 0:00:14]} 44. Rg1 {[%emt 0:00:00]} Qd3 {[%emt 0:01:08]} 45. Qf7 {[%emt 0:00:00]} Qg6 {[%emt 0:01:05]} 46. Qd7 {[%emt 0:00:00]} Qe8 {[%emt 0:00:22]} 47. Qh7 {[%emt 0:00:00]} Rf8 {[%emt 0:00:25]} 48. Qe4 {[%emt 0:00:23]} c3 {[%emt 0:01:02]} 49. f5 {[%emt 0:00:47]} a4 {[%emt 0:01:18]} 50. Rb1 {[%emt 0:00:06]} Ka6 {[%emt 0:00:16]} 51. Rc1 {[%emt 0:05:44]} 1/2-1/2

[Event "Vienna Championship-C 2022"]
[Site "Vienna"]
[Date "2022.09.18"]
[Round "2.2"]
[White "Giefing, Josef"]
[Black "Bendl, Felix"]
[Result "0-1"]
[ECO "A48"]
[WhiteElo "1771"]
[BlackElo "1645"]
[Annotator "NA COMBH"]
[PlyCount "102"]
[EventDate "2022.09.17"]
[EventType "swiss"]
[EventCountry "AUT"]
[SourceTitle "playchess.com"]
[Source "ChessBase"]
[SourceQuality "1"]
[TimeControl "5400+30"]

1. d4 {[%emt 0:00:04]} Nf6 {[%emt 0:00:26]} 2. Nf3 {[%emt 0:00:21]} g6 {[%emt 0:00:17]} 3. Bf4 {[%emt 0:00:29]} Bg7 {[%emt 0:01:08]} 4. e3 {[%emt 0:00:09]} O-O {[%emt 0:00:33]} 5. h3 {[%emt 0:02:43]} d6 {[%emt 0:01:22]} 6. Nc3 {[%emt 0:01:19]} Nbd7 {[%emt 0:02:42]} 7. Be2 {[%emt 0:02:18]} Nb6 {[%emt 0:01:36]} 8. O-O {[%emt 0:00:48]} Bd7 {[%emt 0:01:13]} 9. Bh2 {[%emt 0:01:05]} Re8 {[%emt 0:03:02]} 10. Bb5 {[%emt 0:07:13]} Bxb5 {[%emt 0:00:54]} 11. Nxb5 {[%emt 0:00:05]} Qd7 {[%emt 0:00:12]} 12. Nc3 {[%emt 0:01:50]} Rac8 {[%emt 0:01:35]} 13. a4 {[%emt 0:04:51]} a5 {[%emt 0:00:35]} 14. Qd3 {[%emt 0:00:28]} c5 {[%emt 0:03:10]} 15. Qb5 {[%emt 0:03:47]} Qxb5 {[%emt 0:00:04]} 16. axb5 {[%emt 0:00:15]} cxd4 {[%emt 0:01:59]} 17. exd4 {[%emt 0:00:09]} Nc4 {[%emt 0:02:13]} 18. Na4 {[%emt 0:03:21]} Ne4 {[%emt 0:03:03]} 19. Rfd1 {[%emt 0:00:34]} d5 {[%emt 0:02:40]} 20. c3 {[%emt 0:02:53]} e6 {[%emt 0:03:22]} 21. Rd3 {[%emt 0:01:04]} Ra8 {[%emt 0:03:28]} 22. Ne5 {[%emt 0:11:00]} Bxe5 {[%emt 0:00:21]} 23. dxe5 {[%emt 0:00:09]} Reb8 {[%emt 0:07:52]} 24. Bf4 {[%emt 0:01:08]} g5 {[%emt 0:00:14]} 25. Bh2 {[%emt 0:00:12]} b6 {[%emt 0:02:11]} 26. b3 {[%emt 0:12:33]} Ncd2 {[%emt 0:04:54]} 27. Ra3 {[%emt 0:02:01]} Nb1 {[%emt 0:03:41]} 28. Ra2 {[%emt 0:00:12]} Rb7 {[%emt 0:05:00]} 29. c4 {[%emt 0:02:28]} dxc4 {[%emt 0:01:57]} 30. bxc4 {[%emt 0:40:01]} Rc8 {[%emt 0:43:46]} 31. f3 {[%emt 0:00:00]} Ned2 {[%emt 0:00:00]} 32. Raxd2 {[%emt 0:01:00]} Nxd2 {[%emt 0:01:00]} 33. Rxd2 {[%emt 0:00:30]} Rxc4 {[%emt 0:00:30]} 34. Nb2 {[%emt 0:00:30]} Rc1+ {[%emt 0:00:30]} 35. Kf2 {[%emt 0:00:00]} Rbc7 {[%emt 0:00:00]} 36. Ke2 {[%emt 0:01:00]} R1c2 {[%emt 0:01:00]} 37. Bg1 {[%emt 0:00:30]} Rxd2+ {[%emt 0:00:30]} 38. Kxd2 {[%emt 0:00:30]} Rd7+ {[%emt 0:00:30]} 39. Nd3 {[%emt 0:00:00]} Rd5 {[%emt 0:00:00]} 40. Bxb6 {[%emt 0:00:00]} Rxb5 {[%emt 0:00:00]} 41. Bc7 {[%emt 0:00:00]} a4 {[%emt 0:00:00]} 42. Bd6 {[%emt 0:00:00]} Rb3 {[%emt 0:00:00]} 43. Kc2 {[%emt 0:00:00]} h5 {[%emt 0:00:00]} 44. Nc5 {[%emt 0:00:00]} Re3 {[%emt 0:00:00]} 45. Kd2 {[%emt 0:00:00]} Ra3 {[%emt 0:00:00]} 46. Ne4 {[%emt 0:00:00]} Ra2+ {[%emt 0:00:00]} 47. Ke3 {[%emt 0:00:00]} Rxg2 {[%emt 0:00:00]} 48. Nc3 {[%emt 0:00:00]} Rg3 {[%emt 0:00:00]} 49. Kf2 {[%emt 0:00:00]} Rxh3 {[%emt 0:00:00]} 50. Kg2 {[%emt 0:00:00]} g4 {[%emt 0:00:00]} 51. fxg4 {[%emt 0:00:00]} Rxc3 {[%emt 0:00:00]} 0-1

[Event "Vienna Championship-C 2022"]
[Site "Vienna"]
[Date "2022.09.18"]
[Round "2.3"]
[White "Gerold, Arnold"]
[Black "Johnson, Roland E S"]
[Result "1/2-1/2"]
[ECO "C56"]
[WhiteElo "1708"]
[BlackElo "1691"]
[Annotator "NA COMBH"]
[PlyCount "50"]
[EventDate "2022.09.17"]
[EventType "swiss"]
[EventCountry "AUT"]
[SourceTitle "playchess.com"]
[Source "ChessBase"]
[SourceQuality "1"]
[TimeControl "5400+30"]

1. e4 {[%emt 1:31:00]} e5 {[%emt 1:31:00]} 2. Nf3 {[%emt 0:00:30]} Nf6 {[%emt 0:00:30]} 3. Bc4 {[%emt 0:00:30]} Nc6 {[%emt 0:00:30]} 4. d4 {[%emt 0:00:30]} exd4 {[%emt 0:00:30]} 5. e5 {[%emt 0:00:30]} Ng4 {[%emt 0:00:30]} 6. Bf4 {[%emt 0:00:30]} d6 {[%emt 0:00:30]} 7. exd6 {[%emt 0:00:30]} Bxd6 {[%emt 0:00:30]} 8. Bxd6 {[%emt 0:00:30]} Qxd6 {[%emt 0:00:30]} 9. O-O {[%emt 0:00:30]} O-O {[%emt 0:00:30]} 10. h3 {[%emt 0:00:30]} Nge5 {[%emt 0:00:30]} 11. Nxe5 {[%emt 0:00:30]} Nxe5 {[%emt 0:00:30]} 12. Bb3 {[%emt 0:00:30]} c5 {[%emt 0:00:30]} 13. f4 {[%emt 0:00:30]} Nc6 {[%emt 0:00:30]} 14. Nd2 {[%emt 0:00:30]} b6 {[%emt 0:00:30]} 15. Nc4 {[%emt 0:00:30]} Qc7 {[%emt 0:00:30]} 16. Qd2 {[%emt 0:00:30]} Ba6 {[%emt 0:00:30]} 17. c3 {[%emt 0:00:30]} dxc3 {[%emt 0:00:30]} 18. Qxc3 {[%emt 0:00:30]} b5 {[%emt 0:00:30]} 19. Ne5 {[%emt 0:00:30]} Nxe5 {[%emt 0:00:30]} 20. Qxe5 {[%emt 0:00:30]} Qxe5 {[%emt 0:00:30]} 21. fxe5 {[%emt 0:00:30]} c4 {[%emt 0:00:30]} 22. Bc2 {[%emt 0:00:30]} Rfe8 {[%emt 0:00:30]} 23. Rfe1 {[%emt 0:00:30]} Rad8 {[%emt 0:00:30]} 24. Re2 {[%emt 0:00:30]} g6 {[%emt 0:00:30]} 25. Kf2 {[%emt 0:00:30]} Re6 {[%emt 0:00:30]} 1/2-1/2

[Event "Vienna Championship-C 2022"]
[Site "Vienna"]
[Date "2022.09.18"]
[Round "2.5"]
[White "Brueggeboes, Anton"]
[Black "Nicolussi, Hieronymus"]
[Result "1-0"]
[ECO "C06"]
[WhiteElo "1506"]
[BlackElo "1239"]
[Annotator "NA COMBH"]
[PlyCount "89"]
[EventDate "2022.09.17"]
[EventType "swiss"]
[EventCountry "AUT"]
[SourceTitle "playchess.com"]
[Source "ChessBase"]
[SourceQuality "1"]
[TimeControl "5400+30"]

1. e4 {[%emt 0:00:03]} e6 {[%emt 0:00:05]} 2. d4 {[%emt 0:00:22]} d5 {[%emt 1:31:25]} 3. Nd2 {[%emt 0:00:22]} Nf6 {[%emt 0:00:00]} 4. e5 {[%emt 0:00:05]} Nfd7 {[%emt 0:00:00]} 5. Bd3 {[%emt 0:00:07]} c5 {[%emt 0:00:00]} 6. c3 {[%emt 0:00:08]} Nc6 {[%emt 0:00:00]} 7. Ne2 {[%emt 0:00:13]} Qb6 {[%emt 0:00:00]} 8. Nf3 {[%emt 0:00:19]} f6 {[%emt 0:00:00]} 9. Nf4 {[%emt 0:01:04]} fxe5 {[%emt 0:00:00]} 10. dxe5 {[%emt 0:02:02]} Ndxe5 {[%emt 0:00:00]} 11. Nxe5 {[%emt 0:00:14]} Nxe5 {[%emt 0:00:00]} 12. Qh5+ {[%emt 0:00:07]} Nf7 {[%emt 0:00:00]} 13. O-O {[%emt 0:00:26]} g6 {[%emt 0:00:00]} 14. Qe2 {[%emt 0:00:20]} c4 {[%emt 0:00:00]} 15. Bc2 {[%emt 0:00:50]} Qc6 {[%emt 0:00:00]} 16. Re1 {[%emt 0:06:22]} e5 {[%emt 0:00:00]} 17. Rd1 {[%emt 0:02:11]} Be6 {[%emt 0:00:00]} 18. Nxe6 {[%emt 0:01:02]} Qxe6 {[%emt 0:00:00]} 19. Ba4+ {[%emt 0:00:24]} Kd8 {[%emt 0:00:00]} 20. Qxc4 {[%emt 0:00:12]} Bd6 {[%emt 0:00:00]} 21. Qxd5 {[%emt 0:01:40]} Qxd5 {[%emt 0:00:00]} 22. Rxd5 {[%emt 0:00:06]} Kc7 {[%emt 0:00:00]} 23. Be3 {[%emt 0:00:24]} Rad8 {[%emt 0:00:00]} 24. Rad1 {[%emt 0:04:01]} a6 {[%emt 0:00:00]} 25. c4 {[%emt 0:01:01]} b6 {[%emt 0:00:00]} 26. a3 {[%emt 0:03:10]} Rhf8 {[%emt 0:00:00]} 27. b4 {[%emt 0:00:50]} Kb7 {[%emt 0:00:00]} 28. c5 {[%emt 0:06:04]} b5 {[%emt 0:00:00]} 29. Bb3 {[%emt 0:01:00]} Bc7 {[%emt 0:00:00]} 30. Rxd8 {[%emt 0:04:53]} Rxd8 {[%emt 0:00:00]} 31. Rxd8 {[%emt 0:00:12]} Nxd8 {[%emt 0:00:00]} 32. Bg8 {[%emt 0:00:12]} h5 {[%emt 0:00:00]} 33. Bh7 {[%emt 0:04:30]} Ne6 {[%emt 0:00:00]} 34. Bxg6 {[%emt 0:00:30]} h4 {[%emt 0:00:00]} 35. g3 {[%emt 0:01:59]} hxg3 {[%emt 0:00:00]} 36. hxg3 {[%emt 0:00:02]} Nd4 {[%emt 0:00:00]} 37. Kg2 {[%emt 0:01:24]} Kc6 {[%emt 0:00:00]} 38. Be4+ {[%emt 0:00:32]} Kd7 {[%emt 0:00:00]} 39. g4 {[%emt 0:02:05]} Ke6 {[%emt 0:00:00]} 40. Kh3 {[%emt 0:02:05]} Bd8 {[%emt 0:00:00]} 41. g5 {[%emt 0:00:37]} Nf5 {[%emt 0:00:00]} 42. Bxf5+ {[%emt 0:00:23]} Kxf5 {[%emt 0:00:00]} 43. Kh4 {[%emt 0:02:18]} Kg6 {[%emt 0:00:00]} 44. Kg4 {[%emt 0:00:11]} e4 {[%emt 0:00:00]} 45. Bf4 {[%emt 0:00:47]} 1-0

[Event "Vienna Championship-C 2022"]
[Site "Vienna"]
[Date "2022.09.18"]
[Round "2.8"]
[White "Ruck, Helmut"]
[Black "Eichhorn, Elisabeth"]
[Result "1-0"]
[ECO "A48"]
[WhiteElo "1662"]
[BlackElo "1306"]
[Annotator "NA COMBH"]
[PlyCount "85"]
[EventDate "2022.09.17"]
[EventType "swiss"]
[EventCountry "AUT"]
[SourceTitle "playchess.com"]
[Source "ChessBase"]
[SourceQuality "1"]
[TimeControl "5400+30"]

1. d4 {[%emt 0:08:59]} Nf6 {[%emt 0:00:07]} 2. Nf3 {[%emt 0:00:03]} g6 {[%emt 0:00:24]} 3. b3 {[%emt 0:00:21]} Bg7 {[%emt 0:00:25]} 4. Bb2 {[%emt 0:00:01]} O-O {[%emt 0:00:19]} 5. e3 {[%emt 0:00:00]} d6 {[%emt 0:00:26]} 6. Be2 {[%emt 0:00:05]} Nbd7 {[%emt 0:02:05]} 7. O-O {[%emt 0:00:07]} Re8 {[%emt 0:01:23]} 8. c4 {[%emt 0:00:05]} c5 {[%emt 0:08:59]} 9. Nbd2 {[%emt 0:00:54]} e5 {[%emt 0:04:32]} 10. dxe5 {[%emt 0:13:25]} dxe5 {[%emt 0:02:00]} 11. e4 {[%emt 0:03:50]} Nh5 {[%emt 0:05:46]} 12. Re1 {[%emt 0:04:03]} Nf4 {[%emt 0:03:08]} 13. Nf1 {[%emt 0:04:47]} Nxe2+ {[%emt 0:05:56]} 14. Qxe2 {[%emt 0:00:27]} Qc7 {[%emt 0:04:55]} 15. Ne3 {[%emt 0:00:25]} Nb6 {[%emt 0:12:09]} 16. Rad1 {[%emt 0:00:21]} Bd7 {[%emt 0:03:45]} 17. Rd2 {[%emt 0:03:40]} Rad8 {[%emt 0:02:05]} 18. Red1 {[%emt 0:00:00]} h6 {[%emt 0:03:07]} 19. h3 {[%emt 0:00:47]} Rf8 {[%emt 0:06:27]} 20. Bc3 {[%emt 0:10:35]} Be6 {[%emt 0:02:29]} 21. Rxd8 {[%emt 0:02:45]} Rxd8 {[%emt 0:00:24]} 22. Rxd8+ {[%emt 0:00:05]} Qxd8 {[%emt 0:00:18]} 23. Bxe5 {[%emt 0:00:13]} f6 {[%emt 0:01:23]} 24. Bc3 {[%emt 0:02:55]} Qe8 {[%emt 0:03:02]} 25. Qb2 {[%emt 0:03:26]} Qf7 {[%emt 0:04:44]} 26. Nd5 {[%emt 0:05:09]} Nxd5 {[%emt 0:01:52]} 27. exd5 {[%emt 0:00:03]} Bd7 {[%emt 0:00:49]} 28. Qd2 {[%emt 0:03:22]} Bf8 {[%emt 0:01:06]} 29. Qf4 {[%emt 0:01:03]} Bg7 {[%emt 0:01:39]} 30. Qb8+ {[%emt 0:01:33]} Be8 {[%emt 0:01:38]} 31. Qxa7 {[%emt 0:01:07]} Bf8 {[%emt 0:01:20]} 32. Qb6 {[%emt 0:02:53]} Qe7 {[%emt 0:01:55]} 33. Qxf6 {[%emt 0:01:20]} Qxf6 {[%emt 0:00:27]} 34. Bxf6 {[%emt 0:00:01]} Kf7 {[%emt 0:00:56]} 35. Bc3 {[%emt 0:04:40]} Ke7 {[%emt 0:01:24]} 36. Kf1 {[%emt 0:00:30]} Bd7 {[%emt 0:00:54]} 37. Ke2 {[%emt 0:00:24]} Bf5 {[%emt 0:00:36]} 38. b4 {[%emt 0:02:23]} b6 {[%emt 0:00:47]} 39. bxc5 {[%emt 0:00:09]} bxc5 {[%emt 0:00:21]} 40. Nd2 {[%emt 0:00:53]} Kd6 {[%emt 0:00:52]} 41. f3 {[%emt 0:00:04]} g5 {[%emt 0:00:52]} 42. Ne4+ {[%emt 0:00:07]} Kd7 {[%emt 0:01:38]} 43. Ke3 {[%emt 0:00:43]} 1-0

[Event "Vienna Championship-C 2022"]
[Site "Vienna"]
[Date "2022.09.18"]
[Round "2.11"]
[White "Pavlov, Julian"]
[Black "Gockner, Hans"]
[Result "1/2-1/2"]
[ECO "B01"]
[WhiteElo "1306"]
[BlackElo "1592"]
[Annotator "NA COMBH"]
[PlyCount "37"]
[EventDate "2022.09.17"]
[EventType "swiss"]
[EventCountry "AUT"]
[SourceTitle "playchess.com"]
[Source "ChessBase"]
[SourceQuality "1"]
[TimeControl "5400+30"]

1. e4 {[%emt 0:00:01]} d5 {[%emt 0:00:51]} 2. exd5 {[%emt 0:00:06]} Qxd5 {[%emt 0:00:30]} 3. Nc3 {[%emt 0:00:06]} Qd8 {[%emt 0:00:31]} 4. d4 {[%emt 0:00:12]} e6 {[%emt 0:01:30]} 5. Nf3 {[%emt 0:00:10]} Nf6 {[%emt 0:00:45]} 6. Bf4 {[%emt 0:00:29]} Bb4 {[%emt 0:00:54]} 7. Bc4 {[%emt 0:01:11]} O-O {[%emt 0:02:18]} 8. O-O {[%emt 0:00:09]} Bxc3 {[%emt 0:01:55]} 9. bxc3 {[%emt 0:00:05]} Nc6 {[%emt 0:01:30]} 10. Ne5 {[%emt 0:01:01]} Nd5 {[%emt 0:04:46]} 11. Bxd5 {[%emt 0:03:08]} exd5 {[%emt 0:01:31]} 12. Nxc6 {[%emt 0:00:07]} bxc6 {[%emt 0:00:14]} 13. Re1 {[%emt 0:00:21]} Be6 {[%emt 0:05:25]} 14. Qf3 {[%emt 0:01:07]} Qd7 {[%emt 0:01:09]} 15. Qg3 {[%emt 0:00:44]} Rac8 {[%emt 0:00:56]} 16. h3 {[%emt 0:00:41]} Bf5 {[%emt 0:01:39]} 17. Rac1 {[%emt 0:01:45]} Bg6 {[%emt 0:05:05]} 18. Be5 {[%emt 0:01:45]} f6 {[%emt 0:01:24]} 19. Bf4 {[%emt 0:00:16]} 1/2-1/2

[Event "Vienna Championship-C 2022"]
[Site "Vienna"]
[Date "2022.09.18"]
[Round "2.12"]
[White "Aichinger, Johannes"]
[Black "Unger, Alexander"]
[Result "0-1"]
[ECO "B80"]
[WhiteElo "1169"]
[BlackElo "1456"]
[Annotator "NA COMBH"]
[PlyCount "88"]
[EventDate "2022.09.17"]
[EventType "swiss"]
[EventCountry "AUT"]
[SourceTitle "playchess.com"]
[Source "ChessBase"]
[SourceQuality "1"]
[TimeControl "5400+30"]

1. e4 {[%emt 0:00:01]} c5 {[%emt 0:00:05]} 2. Nf3 {[%emt 0:00:04]} d6 {[%emt 0:00:06]} 3. d4 {[%emt 0:00:04]} cxd4 {[%emt 0:00:10]} 4. Nxd4 {[%emt 0:00:13]} Nf6 {[%emt 0:00:08]} 5. Nc3 {[%emt 0:00:23]} a6 {[%emt 0:00:05]} 6. f3 {[%emt 0:00:12]} e6 {[%emt 0:00:46]} 7. Be3 {[%emt 0:00:07]} Be7 {[%emt 0:00:06]} 8. Bd3 {[%emt 0:00:05]} Nbd7 {[%emt 0:01:00]} 9. Qd2 {[%emt 0:00:08]} Qc7 {[%emt 0:01:15]} 10. a4 {[%emt 0:00:14]} h5 {[%emt 0:02:52]} 11. Ke2 {[%emt 0:00:29]} Nb6 {[%emt 0:05:04]} 12. Rag1 {[%emt 0:00:32]} Nc4 {[%emt 0:03:50]} 13. Bxc4 {[%emt 0:00:30]} Qxc4+ {[%emt 0:00:08]} 14. Qd3 {[%emt 0:00:06]} Qxd3+ {[%emt 0:00:44]} 15. cxd3 {[%emt 0:00:07]} Bd7 {[%emt 0:00:32]} 16. b3 {[%emt 0:00:20]} Rd8 {[%emt 0:08:23]} 17. h3 {[%emt 0:00:21]} Bc8 {[%emt 0:05:11]} 18. g4 {[%emt 0:00:21]} hxg4 {[%emt 0:00:32]} 19. hxg4 {[%emt 0:00:09]} Kd7 {[%emt 0:00:09]} 20. g5 {[%emt 0:01:01]} Nh5 {[%emt 0:01:37]} 21. Kf2 {[%emt 0:00:12]} g6 {[%emt 0:01:53]} 22. f4 {[%emt 0:00:10]} Kc7 {[%emt 0:06:12]} 23. Rc1 {[%emt 0:00:22]} Kb8 {[%emt 0:00:53]} 24. b4 {[%emt 0:01:06]} e5 {[%emt 0:01:45]} 25. fxe5 {[%emt 0:01:13]} dxe5 {[%emt 0:00:17]} 26. Nd5 {[%emt 0:01:03]} exd4 {[%emt 0:00:28]} 27. Bxd4 {[%emt 0:00:45]} Bxg5 {[%emt 0:01:36]} 28. Be5+ {[%emt 0:00:54]} Ka7 {[%emt 0:07:18]} 29. b5 {[%emt 0:00:23]} a5 {[%emt 0:09:48]} 30. b6+ {[%emt 0:00:32]} Ka6 {[%emt 0:01:32]} 31. Nc7+ {[%emt 0:00:43]} Kxb6 {[%emt 0:00:09]} 32. Na8+ {[%emt 0:00:26]} Ka7 {[%emt 0:01:45]} 33. Rc5 {[%emt 0:00:12]} b6 {[%emt 0:04:43]} 34. Rc7+ {[%emt 0:00:43]} Kxa8 {[%emt 0:00:19]} 35. Rb1 {[%emt 1:33:49]} Bf6 {[%emt 0:02:21]} 36. Bh2 {[%emt 0:00:00]} Bd4+ {[%emt 0:01:20]} 37. Ke2 {[%emt 0:00:00]} Rd7 {[%emt 0:00:00]} 38. Rc4 {[%emt 0:00:00]} Ba6 {[%emt 0:01:40]} 39. Rc6 {[%emt 0:00:00]} Rc8 {[%emt 0:00:32]} 40. Rbxb6 {[%emt 0:00:00]} Bxb6 {[%emt 0:00:17]} 41. Rxb6 {[%emt 0:00:00]} Bxd3+ {[%emt 0:02:08]} 42. Ke3 {[%emt 0:03:30]} Rc3 {[%emt 0:00:47]} 43. Rb8+ {[%emt 0:00:00]} Ka7 {[%emt 0:00:14]} 44. Be5 {[%emt 0:00:00]} Bc2+ {[%emt 0:04:11]} 0-1

[Event "Vienna Championship-C 2022"]
[Site "Vienna"]
[Date "2022.09.18"]
[Round "2.13"]
[White "Niesswohl, Werner"]
[Black "Twyble, Michael S"]
[Result "0-1"]
[ECO "A52"]
[WhiteElo "1473"]
[BlackElo "2245"]
[Annotator "ChessBase"]
[PlyCount "120"]
[EventDate "2022.09.17"]
[EventType "swiss"]
[EventCountry "AUT"]
[SourceTitle "playchess.com"]
[Source "ChessBase"]
[SourceQuality "1"]
[TimeControl "5400+30"]

1. d4 {[%emt 0:00:07]} Nf6 {[%emt 0:22:46]} 2. c4 {[%emt 0:00:54]} e5 {[%emt 0:00:47]} 3. dxe5 {[%emt 0:01:00]} Ng4 {[%emt 0:00:45]} 4. Nf3 {[%emt 0:00:44]} Bc5 {[%emt 0:00:23]} 5. e3 {[%emt 0:00:34]} Nc6 {[%emt 0:00:16]} 6. Be2 {[%emt 0:01:27]} O-O {[%emt 0:00:31]} 7. h3 {[%emt 0:01:28]} Ngxe5 {[%emt 0:00:15]} 8. O-O {[%emt 0:02:55]} Re8 {[%emt 0:03:17]} 9. Nc3 {[%emt 0:02:18]} d6 {[%emt 0:01:44]} 10. a3 {[%emt 0:00:39]} a5 {[%emt 0:00:58]} 11. Na4 {[%emt 0:04:06]} Nd7 {[%emt 0:07:24]} 12. Bd3 {[%emt 0:03:54]} Nce5 {[%emt 0:01:51]} 13. Nxe5 {[%emt 0:03:18]} Nxe5 {[%emt 0:03:21]} 14. Nxc5 {[%emt 0:02:43]} dxc5 {[%emt 0:00:14]} 15. Be2 {[%emt 0:00:42]} Be6 {[%emt 0:01:02]} 16. Qxd8 {[%emt 0:01:50]} Raxd8 {[%emt 0:00:47]} 17. b3 {[%emt 0:00:30]} a4 {[%emt 0:00:30]} 18. f4 {[%emt 0:00:30]} Nd3 {[%emt 0:00:30]} 19. Bxd3 {[%emt 0:00:30]} Rxd3 {[%emt 0:00:30]} 20. f5 {[%emt 0:00:30]} Bd7 {[%emt 0:00:30]} 21. b4 {[%emt 0:00:30]} cxb4 {[%emt 0:00:30]} 22. axb4 {[%emt 0:00:30]} Re4 {[%emt 0:00:30]} 23. Rf4 {[%emt 0:00:30]} Rxf4 {[%emt 0:00:30]} 24. exf4 {[%emt 0:00:30]} Rc3 {[%emt 0:00:30]} 25. Bb2 {[%emt 0:00:30]} Rd3 {[%emt 0:00:30]} 26. b5 {[%emt 0:00:30]} f6 {[%emt 0:00:30]} 27. Rxa4 {[%emt 0:00:30]} Rd1+ {[%emt 0:00:30]} 28. Kh2 {[%emt 0:00:30]} Bxf5 {[%emt 0:00:30]} 29. c5 {[%emt 0:00:30]} Rd2 {[%emt 0:00:30]} 30. Bc3 {[%emt 0:00:30]} Rc2 {[%emt 0:00:30]} 31. Rc4 {[%emt 0:00:30]} Bd3 {[%emt 0:00:30]} 32. Rd4 {[%emt 0:00:30]} Rxc3 {[%emt 0:00:30]} 33. c6 {[%emt 0:00:30]} bxc6 {[%emt 0:00:30]} 34. bxc6 {[%emt 0:00:30]} Bb5 {[%emt 0:00:30]} 35. Rd8+ {[%emt 0:00:30]} Kf7 {[%emt 0:00:30]} 36. Rd7+ {[%emt 0:00:30]} Kg6 {[%emt 0:00:30]} 37. Rxc7 {[%emt 0:00:30]} Rxc6 {[%emt 0:00:30]} 38. Re7 {[%emt 0:00:30]} Rc2 {[%emt 0:00:30]} 39. Kg1 {[%emt 0:00:30]} Bc6 {[%emt 0:00:30]} 40. g4 {[%emt 0:00:30]} Rc1+ {[%emt 0:00:30]} 41. Kf2 {[%emt 0:00:30]} Rh1 {[%emt 0:00:30]} 42. Kg3 {[%emt 0:00:30]} Rg1+ {[%emt 0:00:30]} 43. Kf2 {[%emt 0:00:30]} Rg2+ {[%emt 0:00:30]} 44. Kf1 {[%emt 0:00:30]} Rh2 {[%emt 0:00:30]} 45. Re6 {[%emt 0:00:30]} Bb5+ {[%emt 0:00:30]} 46. Kg1 {[%emt 0:00:30]} Rxh3 {[%emt 0:00:30]} 47. g5 {[%emt 0:00:30]} Kf5 {[%emt 0:00:30]} 48. Kg2 {[%emt 0:00:30]} Kxe6 {[%emt 0:00:30]} 49. Kxh3 {[%emt 0:00:30]} Kf5 {[%emt 0:00:30]} 50. gxf6 {[%emt 0:00:30]} gxf6 {[%emt 0:00:30]} 51. Kg3 {[%emt 0:00:30]} h5 {[%emt 0:00:30]} 52. Kh4 {[%emt 0:00:30]} Kxf4 {[%emt 0:00:30]} 53. Kxh5 {[%emt 0:00:30]} f5 {[%emt 0:00:30]} 54. Kh4 {[%emt 0:00:30]} Kf3 {[%emt 0:00:30]} 55. Kh3 {[%emt 0:00:30]} f4 {[%emt 0:00:30]} 56. Kh2 {[%emt 0:00:30]} Kf2 {[%emt 0:00:30]} 57. Kh3 {[%emt 0:00:30]} f3 {[%emt 0:00:30]} 58. Kh2 {[%emt 0:00:30]} Ke2 {[%emt 0:00:30]} 59. Kg1 {[%emt 0:00:30]} f2+ {[%emt 0:00:30]} 60. Kh2 {[%emt 0:00:30]} f1=Q {[%emt 0:00:30]} 0-1